Cogmind - Beta 12 @@@ ROGUE MODE // 2023.04.20 @ 20:39:24 Player: wchar_t Result: Destroyed by S-10 Pest with Light Assault Rifle Performance ------------- Evolutions (0) 0 Regions Visited (4) 800 Robots Destroyed (0) 0 Value Destroyed (0) 0 Prototype IDs (23) 460 Alien Tech Used (0) 0 Bonus (300) 300 TOTAL SCORE: 1560 Bonus ------- Aligned with FarCom 300 Cogmind --------- Core Integrity 0/250 Matter 300/300 Energy 100/100 System Corruption 0% Temperature Cool (0) Movement Core (50) Location -9/Mines Parts ------- > --- POWER (1) -------- (None) > --- PROPULSION (2) --- (None) > --- UTILITY (2) ------ Supersonic Drone Bay (1/1) > --- WEAPON (2) ------- (None) > --- INVENTORY (5) ---- (None) Peak State ------------ > --- POWER ------------ (None) > --- PROPULSION ------- Flight Unit > --- UTILITY ---------- Core Shielding Supersonic Drone Bay > --- WEAPON ----------- (None) > --- INVENTORY -------- (None) [Rating: 10] Favorites ----------- Power None Propulsion Flight Unit Hover Unit Hover Unit Flight Unit Flight Unit Utility Core Shielding Device Supersonic Drone Bay Protection Core Shielding Weapon None Build | -11 -10 -10 -10 -9 ------- Run | Jun Mat Min Exi Min Slots Evolved . | . . . . . Power . | . . . . . Propulsion . | . . . . . Utility . | . . . . . Weapon . | . . . . . Parts Attached 5 | . 2 1 1 1 Power . | . . . . . Engine . | . . . . . Core . | . . . . . Reactor . | . . . . . Propulsion 2 | . 1 1 . . Treads . | . . . . . Leg . | . . . . . Wheel . | . . . . . Hover 1 | . 1 . . . Flight 1 | . . 1 . . Utility 3 | . 1 . 1 1 Device 2 | . . . 1 1 Storage . | . . . . . Processor . | . . . . . Hackware . | . . . . . Protection 1 | . 1 . . . Artifact . | . . . . . Weapon . | . . . . . Energy Gun . | . . . . . Energy Cannon . | . . . . . Ballistic Gun . | . . . . . Ballistic Cannon . | . . . . . Launcher . | . . . . . Special Weapon . | . . . . . Impact Weapon . | . . . . . Slashing Weapon . | . . . . . Piercing Weapon . | . . . . . Special Melee Weapon . | . . . . . Unidentified Prototypes . | . . . . . Parts Lost 3 | . . 1 . 2 Power . | . . . . . Propulsion 2 | . . 1 . 1 Utility 1 | . . . . 1 Weapon . | . . . . . Highest Loss Streak 1 | . . 1 . 1 To Critical Strikes . | . . . . . Average Slot Usage (%) 25 | . 24 27 29 15 Hover 2 | . 10 2 . . Flight 10 | . . 10 14 11 Device 1 | . . . 1 4 Protection 11 | . 14 14 14 . Naked Turns 4 | . 4 . . . Heaviest Build 1 | . 1 1 1 1 Greatest Support 4 | 3 3 4 4 4 Greatest Overweight (x) . | . . . . . Average Overweight (x) . | . . . . . Largest Inventory Capacity 5 | 5 5 5 5 5 Average Capacity 5 | 5 5 5 5 5 Most Carried 1 | . . . 1 1 Average Carried . | . . . . . Final Capacity 5 | 5 5 5 5 5 Final Carried 1 | . . . 1 . Class Distribution -------------------- 100% | Mutant Dominant Class ---------------- Mutant | -10/Materials Mutant | -10/Mines Mutant | -10/Exiles Mutant | -9/Mines Resources | -11 -10 -10 -10 -9 ----------- Run | Jun Mat Min Exi Min Matter Collected 207 | 90 . 30 . 87 Remotely . | . . . . . Salvage Created . | . . . . . Parts . | . . . . . Haulers Intercepted . | . . . . . Recyclers Shooed . | . . . . . Parts Field Recycled . | . . . . . Retrieved Matter . | . . . . . Parts Self-Destructed . | . . . . . Prevented . | . . . . . Kills | -11 -10 -10 -10 -9 ------- Run | Jun Mat Min Exi Min Combat Hostiles Destroyed . | . . . . . Classes Destroyed . | . . . . . Best Kill Streak . | . . . . . Combat Bots Only . | . . . . . Max Kills in Single Turn . | . . . . . Gunslinging . | . . . . . Exploded . | . . . . . Melee . | . . . . . Uniques/NPCs Destroyed . | . . . . . Combat | -11 -10 -10 -10 -9 -------- Run | Jun Mat Min Exi Min Damage Taken 411 | . 38 252 . 121 Core 254 | . 25 161 . 68 Absorbed by Shields . | . . . . . Redirected to Shielding 37 | . 4 32 . 1 Core Remaining (%) 100 | 100 . . . . Volleys Fired . | . . . . . Largest . | . . . . . Hottest . | . . . . . Shots Fired . | . . . . . Gun . | . . . . . Cannon . | . . . . . Launcher . | . . . . . Special . | . . . . . Kinetic . | . . . . . Thermal . | . . . . . Explosive . | . . . . . Electromagnetic . | . . . . . Robot Hit Streak . | . . . . . Robot Miss Streak . | . . . . . Penetration Max . | . . . . . Secondary Targets . | . . . . . Shots Hit Robots . | . . . . . Core Hits . | . . . . . Critical Kills . | . . . . . Critical Parts Destroyed . | . . . . . Critical Strikes . | . . . . . Melee Attacks . | . . . . . Impact . | . . . . . Slashing . | . . . . . Piercing . | . . . . . Sneak Attacks . | . . . . . Combat Hostiles . | . . . . . Follow-up Attacks . | . . . . . Damage Inflicted 69 | . . 53 . 16 Guns . | . . . . . Cannons . | . . . . . Explosions . | . . . . . Melee . | . . . . . Ramming 69 | . . 53 . 16 Kinetic . | . . . . . Thermal . | . . . . . Explosive . | . . . . . Electromagnetic . | . . . . . Impact . | . . . . . Slashing . | . . . . . Piercing . | . . . . . Highest Corruption . | . . . . . Average Corruption . | . . . . . Corruption Purged . | . . . . . Corruption Blocked . | . . . . . Overload Shots . | . . . . . Overflow Damage . | . . . . . Projectiles . | . . . . . Explosions . | . . . . . Melee . | . . . . . Knockbacks . | . . . . . Impact . | . . . . . Kinetic . | . . . . . Secondary . | . . . . . Self-Inflicted Damage 33 | . . 25 . 8 Shots . | . . . . . Rammed 9 | . . 8 . 1 Targets Rammed 9 | . . 8 . 1 Kicked . | . . . . . Crushed . | . . . . . Highest Temperature . | . . . . . Average Temperature . | . . . . . Received Heat Transfer 66 | . . 66 . . Siege Activations . | . . . . . Robots Corrupted . | . . . . . Combat Hostiles . | . . . . . Parts Fried . | . . . . . Impact Corruptions . | . . . . . Robots Melted . | . . . . . Combat Hostiles . | . . . . . Parts Melted . | . . . . . Heat Transferred . | . . . . . Parts Sabotaged . | . . . . . Parts Stolen . | . . . . . Parts Stripped . | . . . . . Power Chain Reactions . | . . . . . Missiles Intercepted . | . . . . . Alert | -11 -10 -10 -10 -9 ------- Run | Jun Mat Min Exi Min Peak Influence 75 | . . 75 . 45 Initial . | . . . . . Average 35 | . . 43 . 28 Maximum Alert Level . | . . . . . Low Security (%) 100 | 100 100 100 . 100 Level 1 . | . . . . . Level 2 . | . . . . . Level 3 . | . . . . . Level 4 . | . . . . . Level 5 . | . . . . . High Security . | . . . . . Max Security . | . . . . . Squads Dispatched 2 | . 1 1 . . Investigation 2 | . 1 1 . . Extermination . | . . . . . Reinforcement . | . . . . . Assault . | . . . . . Garrison . | . . . . . Intercept . | . . . . . Searches Triggered . | . . . . . Construction Impeded . | . . . . . Haulers Reinforced . | . . . . . Active Scanning Responses . | . . . . . Cargo Convoy Interrupts . | . . . . . Stealth | -11 -10 -10 -10 -9 --------- Run | Jun Mat Min Exi Min Distress Signals 1 | . . 1 . . Communications Jammed . | . . . . . Distress Signals . | . . . . . Times Spotted 21 | . 3 12 . 6 Peak Tracking Total 5 | . 3 5 . 3 Tactical Retreats 4 | . . 2 . 2 Traps | -11 -10 -10 -10 -9 ------- Run | Jun Mat Min Exi Min Traps Triggered . | . . . . . Indirectly . | . . . . . Trap Hack Attempts . | . . . . . Triggered . | . . . . . Disarmed . | . . . . . Reprogrammed . | . . . . . Reused . | . . . . . Traps Extracted . | . . . . . Installed . | . . . . . Triggered 1 | . . 1 . . Machines | -11 -10 -10 -10 -9 ---------- Run | Jun Mat Min Exi Min Machines Disabled . | . . . . . Max in Single Turn . | . . . . . Machines Repaired . | . . . . . Machines Sabotaged . | . . . . . Overloaded Fab Kills . | . . . . . Hacking | -11 -10 -10 -10 -9 --------- Run | Jun Mat Min Exi Min Machines Accessed 4 | . 2 1 1 . Terminals 2 | . 2 . . . Fabricators . | . . . . . Repair Stations . | . . . . . Recycling Units . | . . . . . Scanalyzers . | . . . . . Garrison Access . | . . . . . Total Hacks 8 | . 6 1 1 . Successful 2 | . . 1 1 . Failed 6 | . 6 . . . Catastrophic 1 | . 1 . . . Database Lockouts . | . . . . . Manual 7 | . 6 . 1 . Terminals 6 | . 6 . . . Fabricators . | . . . . . Repair Stations . | . . . . . Recycling Units . | . . . . . Scanalyzers . | . . . . . Garrison Access . | . . . . . Terminal Hacks 2 | . . 1 1 . Open Door 1 | . . 1 . . EX-Prototype ID Bank 1 | . . . 1 . Fabricator Hacks . | . . . . . Repair Station Hacks . | . . . . . Recycling Unit Hacks . | . . . . . Scanalyzer . | . . . . . Garrison Access Hacks . | . . . . . Unauthorized Hacks . | . . . . . Terminals . | . . . . . Fabricators . | . . . . . Repair Stations . | . . . . . Recycling Units . | . . . . . Scanalyzers . | . . . . . Garrison Access . | . . . . . Data Cores Recovered . | . . . . . Used . | . . . . . Hacking Detections 2 | . 2 . . . Full Trace Events 2 | . 2 . . . Feedback Events . | . . . . . Feedback Blocked . | . . . . . Robot Schematics Acquired . | . . . . . Robots Built . | . . . . . Authchips . | . . . . . Time . | . . . . . Total Robot Build Rating . | . . . . . Part Schematics Acquired . | . . . . . Parts Built . | . . . . . Authchips . | . . . . . Time . | . . . . . Total Part Build Rating . | . . . . . Parts Repaired . | . . . . . Time . | . . . . . Parts Recycled . | . . . . . Recycled Matter . | . . . . . Retrieved Matter . | . . . . . Retrieved Components . | . . . . . Parts Scanalyzed . | . . . . . Part Schematics Acquired . | . . . . . Parts Damaged . | . . . . . Bothacking | -11 -10 -10 -10 -9 ------------ Run | Jun Mat Min Exi Min Used RIF Installer . | . . . . . Robots Hacked . | . . . . . Non-combat . | . . . . . Combat . | . . . . . Robot Hacks Applied . | . . . . . Relay Couplers Released . | . . . . . Fabnet Peak Effective % . | . . . . . Robots Rewired . | . . . . . Allies Hacked . | . . . . . Hacks Repelled . | . . . . . Allies | -11 -10 -10 -10 -9 -------- Run | Jun Mat Min Exi Min Total Allies . | . . . . . Largest Group . | . . . . . Highest-Rated Group . | . . . . . Highest-Rated Ally . | . . . . . Total Orders . | . . . . . Ally Attacks . | . . . . . Total Damage . | . . . . . Kills . | . . . . . Allies Corrupted . | . . . . . Allies Melted . | . . . . . Intel | -11 -10 -10 -10 -9 ------- Run | Jun Mat Min Exi Min Robot Analysis Total . | . . . . . Derelict Logs Recovered 1 | . . 1 . . Drone Launches . | . . . . . Drone Recoveries . | . . . . . Exploration | -11 -10 -10 -10 -9 ------------- Run | Jun Mat Min Exi Min Turns Passed 560 | 11 41 321 87 100 Spaces Moved 1169 | 22 75 740 211 121 Core 271 | 22 75 135 . 39 Treads . | . . . . . Legs . | . . . . . Wheels . | . . . . . Hover . | . . . . . Flight 898 | . . 605 211 82 Fastest Speed 40 | 50 50 40 40 40 Average Speed 42 | 50 50 41 40 43 Slowest Speed 50 | 50 50 50 40 50 Overloaded Moves . | . . . . . Propulsion Burnouts . | . . . . . Robots Hopped 14 | . . 14 . . Cave-ins Triggered . | . . . . . Exploration Rate (%) 43 | 3 21 99 61 34 Regions Visited 4 Branch Regions 3 Pre-discovered Areas . | . . . . . Known Exits Taken . | . . . . . Unknown Exits Taken 4 | 1 1 1 1 . Scrap Searched 2 | . . 1 . 1 Spaces Dug . | . . . . . Terrain Destroyed . | . . . . . Melee . | . . . . . Projectile . | . . . . . AOE . | . . . . . Terrain Rammed . | . . . . . Walls Destroyed . | . . . . . Machines Disabled . | . . . . . Actions | -11 -10 -10 -10 -9 --------- Run | Jun Mat Min Exi Min Total 1213 | 21 76 736 212 168 Wait 47 | . . 2 . 45 Move 1138 | 21 74 712 210 121 Hop 13 | . . 13 . . Pick Up . | . . . . . Fast Attach 4 | . 2 1 1 . Attach 1 | . . . . 1 Detach 1 | . . . 1 . Swap . | . . . . . Drop . | . . . . . Fire . | . . . . . Melee . | . . . . . Ram 9 | . . 8 . 1 Kick . | . . . . . Crush . | . . . . . Escape Stasis . | . . . . . Rewire . | . . . . . Trap . | . . . . . Miscellaneous . | . . . . . Route ------- -11/Junkyard -10/Materials -10/Mines (discovered 3 exits: [*Mat x2] / *Exi) -10/Exiles (discovered 2 exits: [*Min x2]) -9/Mines History --------- Turn | Location | Event 5 | -11/Junkyard | Discovered new exit (range 15) 12 | -11/Junkyard | Entered Materials 49 | -10/Materials | Discovered new exit (range 9) 53 | -10/Materials | Entered Mines 55 | -10/Mines | Met a Derelict bent on vengeance 59 | -10/Mines | Discovered new exit (range 10) 70 | -10/Mines | Discovered new exit (range 9) 116 | -10/Mines | Core integrity fell below 50% 186 | -10/Mines | Met a Derelict shopkeep closing up shop 302 | -10/Mines | Build established: Mutant 373 | -10/Mines | Deemed a non-threat by the Exiles lab entrance 373 | -10/Mines | Discovered new exit (range 5) 374 | -10/Mines | Entered Exiles 380 | -10/Exiles | Discovered new exit (range 15) 385 | -10/Exiles | Met 8R-AWN 391 | -10/Exiles | Met EX-HEX 403 | -10/Exiles | Met EX-BIN 407 | -10/Exiles | Aligned with FarCom system 407 | -10/Exiles | Given EX-Vault access code 417 | -10/Exiles | Opened EX-Vault 419 | -10/Exiles | Found Supersonic Drone Bay 430 | -10/Exiles | Warned to stay clear of 0b10 Research branches 436 | -10/Exiles | Exiles lab attacked by MAIN.C 457 | -10/Exiles | Discovered new exit (range 10) 461 | -10/Exiles | Left Exiles lab with Supersonic Drone Bay 461 | -10/Exiles | Entered Mines 465 | -9/Mines | Core integrity fell below 20% 519 | -9/Mines | Found a hidden stash of uninstalled traps 561 | -9/Mines | Destroyed by S-10 Pest with Light Assault Rifle Last Messages --------------- 00436_ EXILES: Incoming Unaware force detected on approach from Mines. Prepare for evacuation. 00457_ EXIT=FOUND LOCATION=UNKNOWN GOAL=ESCAPE 00461_ Receiving FarCom transmissions... 00462_ 5L-KAT: "That was close. Too bad in all the rush we got split up from the others." 00462_ C-30 ARC bursts open, deploying its payload. 00462_ S-10 Pest unfolds itself. 00462_ Core Shielding destroyed. 00519_ A stash of uninstalled traps is collected here! 00540_ Flight Unit destroyed. 00554_ K-01 Serf collects debris. 00555_ Acquired 87 matter. 00556_ Searching scrap... 00556_ Found Plasma Cutter. 00556_ Found Cargo Storage Unit. 00556_ Found 31 Matter. 00557_ Slammed into K-01 Serf. Map ----- +----------------------------------------------------+ | ?????????????????????????????????????????????????? | | ?????????????????????????????????????????????????? | | ?????????????????????????????????????????????????? | | ?????????????????????????????????????????????????? | | ?????????????????????????????????????????????????? | | ?????????????????????????????????????????????????? | | ?????????????????????????????????????????????????? | | ?????????????????????????????????????????????????? | | ?????????????????????????????????????????????????? | | ?????????????????????????????????????????????????? | | ?????????????????????????????????????????????????? | | ?????????????????????????????????????????????????? | | ?????????????????????????????????????????????????? | | ?????????????????????????????????????????????????? | | ??????????????????????????????????????????#??????? | | ????????????????????????????????????????? #??????? | | ??????????????????????????????????###??? #??????? | | ??????????????????????????????????# ??? #????### | | ??????????????????????????????????# #??? #???## | | ??????????????????????????????????# #??? #???# | | ????????????????????????????????### #### ##??# | | ????????????????????????????????# #??# | | ????????????????????#####??######% #??## | | ???????????????????## ### ss%|% #???## | | ?????????? ## rk ####% """ #???## | | ?????????? @ #??# """ #??## | | ??????????# ####??# """ #??# | | ???????????# ##?????# #??# | | ???????????## ### #???????# #??# | | ????????????##?????## #????????####### ###??# | | ????????????????????###???????????????# #???## | | ???????????????????????????????????#### #???# | | ???????????????C??????????????????## ##### | | ??????????????????????????????????# | | ?????????????????????????????????# ## #### | | ?????????????????????????????????# #### #??## | | ?????????????????????????????????## #???# #???### | | ??????????????????????????????????###????# #?????? | | ?????????????????????????????????????????# ####??? | | ?????????????????????????????????????##### ##?? | | ??????????????????????????????????#### ### | | ??????????????????????????????????# | | ?????????????????????????????????# | | ?????????????????????????????????## | | ??????????????????????????????? | | ??????????????????????????????? | | ??????????????????????????????###### ### | | ??????????????????????????????????# ??# | | ????????????????????????????????? ??# | | ???????????????????????????????? ??# | +----------------------------------------------------+ Best States ------------- Heat Dissipation 25 Energy Generation 5 Energy Capacity 100 Matter Stores 300 Matter Capacity 300 Sight Range 16 Terrain Scan Density 10 Core Shielding 20 Evasion (%) 62 Item Schematics ----------------- None Robot Schematics ------------------ None Fabricated ------------ Nothing Alien Tech Used ----------------- None Achievements -------------- None Challenges ------------ None Game ------ Seed AutogunLobotomyProjector Manual? 0 Play Time 00:07:43 Cumulative 271.0 hours Start 2023.04.20 @ 20:26:06 End 2023.04.20 @ 20:39:24 Sessions 2 Manual Loads 0 Difficulty Rogue Special Mode None Game No. 108 Rogue 92 Adventurer 8 Explorer 8 Win Type - Total 19 Types 12/1/3/1/1/1/0/0/0 Lore% 87 Gallery% 83 Achievement% 75 Wizard Run 0 Options --------- ASCII 1 Keyboard 1 Movement Vi Keybinds 0 Fullscreen 1 Font 18/CogWide Map View 76x50 Tactical HUD 1 Map Filters NONE Filters NONE Steam 0 RUN: 7b7b7a49-2c0e-48f4-af85-0395c9bb1db0